bitfinex-derivatives/quotes_BTCF0:USTF0_20241128
["timestamp","ask_amount","ask_price","bid_price","bid_amount"]
[1732788212406,0.05123773,94880.0,94877.0,0.16008]
[1732788212407,0.05123791,94878.0,94877.0,0.16008]
[1732788212605,0.05123791,94879.0,94877.0,0.16008]
[1732788212809,0.05123791,94878.0,94877.0,0.16308]
[1732788213109,0.17865709,94880.0,94877.0,0.003]
[1732788213501,0.052675,94879.0,94877.0,0.003]
[1732788213703,0.12598309,94880.0,94877.0,0.003]
[1732788213905,0.12598309,94880.0,94876.0,0.212756]
[1732788214108,0.12498309,94882.0,94877.0,0.16008]
[1732788214305,0.001,94879.0,94878.0,0.16008]
[1732788215006,0.001,94879.0,94878.0,0.16012]
[1732788215205,0.00958193,94879.0,94878.0,0.16012]
[1732788215405,0.00958193,94879.0,94877.0,0.003]
[1732788215601,0.052673,94883.0,94878.0,0.16012]
[1732788215803,0.00856505,94882.0,94878.0,0.16012]
[1732788216106,0.00856505,94881.0,94878.0,0.16012]
[1732788216313,0.001,94879.0,94878.0,0.16312]
[1732788216504,0.00956505,94879.0,94878.0,0.215795]
[1732788216710,0.00956505,94879.0,94878.0,0.531995]
[1732788216711,0.00956528,94879.0,94878.0,0.531995]
[1732788217017,0.052662,94902.0,94878.0,0.86877917]
[1732788217311,0.052662,94902.0,94895.0,0.052665]
[1732788217614,0.48578309,94906.0,94890.0,0.3608]
[1732788217615,0.052664,94899.0,94896.0,0.16012]
[1732788217814,0.052664,94898.0,94896.0,0.16012]
[1732788219313,0.053664,94898.0,94896.0,0.16012]
[1732788219611,0.48578309,94897.0,94896.0,0.16012]
[1732788219812,0.3608,94897.0,94883.0,0.4434]
[1732788220004,0.052668,94891.0,94884.0,0.16012]
[1732788220312,0.052671,94886.0,94884.0,0.16012]
[1732788220812,0.052671,94886.0,94885.0,0.16012]
[1732788222118,0.052671,94886.0,94883.0,0.44336]
[1732788222305,0.052671,94886.0,94884.0,0.16012]
[1732788223506,0.052672,94884.0,94883.0,0.44336]
[1732788223712,0.052672,94884.0,94883.0,0.60292]
[1732788223913,0.052672,94884.0,94883.0,0.60592]
[1732788224215,0.052672,94884.0,94883.0,0.60292]
[1732788225411,0.052676,94877.0,94876.0,0.3608]
[1732788225617,0.3608,94878.0,94863.0,0.00056]
[1732788225909,0.052686,94858.0,94854.0,0.052688]
[1732788226217,0.3608,94864.0,94842.0,0.0302]
[1732788226218,0.48563292,94855.0,94842.0,0.19032]
[1732788226508,0.3608,94850.0,94845.0,0.052693]
[1732788227315,0.3608,94850.0,94835.0,0.3608]
[1732788227316,0.052691,94849.0,94835.0,0.3608]
[1732788227511,0.052698,94837.0,94835.0,0.3608]
[1732788228009,0.0527,94834.0,94832.0,0.16012]
[1732788228205,0.3608,94839.0,94831.0,0.16012]
[1732788228404,0.052704,94826.0,94822.0,0.16012]
[1732788228606,0.052704,94826.0,94820.0,0.12796837]
[1732788228807,0.3608,94831.0,94813.0,0.3608]
[1732788229008,0.3608,94831.0,94814.0,0.16012]
[1732788229311,0.3608,94831.0,94813.0,0.3608]
[1732788229312,0.052702,94830.0,94813.0,0.3608]
[1732788229613,0.052702,94830.0,94810.0,0.12796837]
[1732788229614,0.052711,94814.0,94810.0,0.12796837]
[1732788229915,0.052714,94809.0,94800.0,0.23796837]
[1732788230120,0.052715,94806.0,94800.0,0.23796837]
[1732788230414,0.3608,94823.0,94801.0,0.052718]
[1732788230603,0.02108222,94815.0,94810.0,0.12796837]
[1732788230805,0.02108222,94815.0,94813.0,0.004]
[1732788231112,0.3608,94823.0,94813.0,0.004]
[1732788231504,0.02109704,94819.0,94813.0,0.004]
[1732788231711,0.02109704,94819.0,94815.0,0.05271]
[1732788231906,0.001,94831.0,94813.0,0.004]
[1732788232105,0.001,94831.0,94827.0,0.052703]
[1732788232302,0.001,94831.0,94829.0,0.052702]
[1732788232511,0.001,94831.0,94830.0,0.16016]
[1732788232708,0.052681,94867.0,94861.0,0.052684]
[1732788233008,0.36160001,94873.0,94868.0,0.052681]
[1732788233317,0.36160001,94873.0,94868.0,0.16016]
[1732788233318,0.3608,94873.0,94868.0,0.16016]
[1732788233507,0.3608,94873.0,94865.0,0.052682]
[1732788233708,0.413478,94873.0,94866.0,0.1602544]
[1732788234018,0.3608,94873.0,94867.0,0.052681]
[1732788234218,0.3608,94873.0,94868.0,0.16016]
[1732788234714,0.0065823,94869.0,94868.0,0.16016]
[1732788235016,0.0065823,94869.0,94866.0,9.44e-05]
[1732788235212,0.0065823,94869.0,94867.0,0.15904]
[1732788235714,0.0065823,94869.0,94866.0,9.44e-05]
[1732788235715,0.0015823,94869.0,94866.0,9.44e-05]
[1732788235916,0.0015823,94869.0,94865.0,0.15904]
[1732788235917,0.0015823,94869.0,94859.0,0.3608]
[1732788236107,0.3608,94865.0,94850.0,0.15904]
[1732788236308,0.3608,94851.0,94836.0,0.052698]
[1732788236518,0.052684,94862.0,94839.0,0.052696]
[1732788236819,0.052693,94846.0,94838.0,0.052697]
[1732788237014,0.052694,94844.0,94833.0,0.3608]
[1732788237328,0.413493,94846.0,94835.0,0.052698]
[1732788237614,0.413493,94846.0,94836.0,0.15904]
[1732788238211,0.413493,94846.0,94836.0,0.211738]
[1732788238419,0.052694,94845.0,94836.0,0.211738]
[1732788238619,0.052695,94843.0,94836.0,0.15904]
[1732788239018,0.3608,94846.0,94837.0,0.052698]
[1732788239210,0.3608,94857.0,94838.0,0.15904]
[1732788239416,0.3608,94857.0,94845.0,0.413493]
[1732788239815,0.052693,94846.0,94838.0,0.15904]
[1732788240020,0.3608,94857.0,94838.0,0.15904]
[1732788240021,0.0210833,94853.0,94838.0,0.15904]
[1732788240218,0.0210833,94853.0,94833.0,0.3608]
[1732788240419,0.0210833,94853.0,94838.0,0.002]
[1732788240611,0.0210833,94853.0,94841.0,0.3608]
[1732788241425,0.3608,94857.0,94849.0,0.3608]
[1732788241626,0.052688,94856.0,94850.0,0.15904]
[1732788241815,0.3608,94857.0,94838.0,0.002]
[1732788242015,0.21306486,94860.0,94838.0,0.002]
[1732788242016,0.3608,94848.0,94838.0,0.002]
[1732788242214,0.052696,94841.0,94838.0,0.002]
[1732788242414,0.052697,94840.0,94838.0,0.002]
[1732788242626,0.413497,94840.0,94838.0,0.002]
[1732788243030,0.052701,94832.0,94831.0,0.00158156]
[1732788244441,0.059701,94832.0,94831.0,0.00258156]
[1732788244730,0.059701,94832.0,94831.0,0.00106946]
[1732788244931,0.421501,94832.0,94831.0,0.001]
[1732788245132,0.008,94832.0,94831.0,0.15908392]
[1732788245337,0.008,94832.0,94831.0,0.18998392]
[1732788245520,0.3608,94858.0,94831.0,0.80634392]
[1732788245828,0.12641522,94869.0,94857.0,0.3608]
[1732788246033,0.0015823,94869.0,94862.0,0.052684]
[1732788246327,0.0015823,94869.0,94865.0,0.3608]
[1732788246919,0.0015823,94869.0,94861.0,0.15904]
[1732788247131,0.0542623,94869.0,94861.0,0.15904]
[1732788247727,0.052681,94868.0,94861.0,0.15904]
[1732788248127,0.0015823,94869.0,94864.0,0.052682]
[1732788248432,0.0105823,94869.0,94867.0,0.052681]
[1732788248930,0.0155823,94869.0,94867.0,0.052681]
[1732788249131,0.0115823,94869.0,94867.0,0.052681]
[1732788249434,0.0115823,94869.0,94868.0,0.0316]
[1732788249632,0.0015823,94869.0,94868.0,0.0316]
[1732788249937,0.0085823,94869.0,94868.0,0.0316]
[1732788250325,0.0085823,94869.0,94868.0,0.19064]
[1732788250326,0.0015823,94869.0,94868.0,0.19064]
[1732788250528,0.007,94869.0,94868.0,0.19064]
[1732788250731,0.12483292,94882.0,94881.0,0.052673]
[1732788250933,0.12483292,94885.0,94881.0,0.211713]
[1732788251241,0.3608,94889.0,94881.0,0.15904]
[1732788251242,0.12491454,94884.0,94881.0,0.15904]
[1732788251435,8.162e-05,94884.0,94881.0,0.15904]
[1732788251629,8.162e-05,94884.0,94881.0,0.052673]
[1732788251937,8.162e-05,94884.0,94883.0,0.3608]
[1732788252137,0.3608,94900.0,94883.0,0.51984]
[1732788252443,0.3608,94900.0,94895.0,0.052665]
[1732788252740,0.3608,94900.0,94896.0,0.15904]
[1732788253040,0.052664,94898.0,94897.0,0.15913336]
[1732788253247,0.052664,94898.0,94897.0,9.336e-05]
[1732788253541,0.052664,94898.0,94881.0,0.001]
[1732788253542,0.052673,94882.0,94881.0,0.001]
[1732788253741,0.413473,94882.0,94881.0,0.001]
[1732788253932,2.33250188,94882.0,94861.0,0.052684]
[1732788254232,0.48519943,94873.0,94861.0,0.052684]
[1732788254437,0.3608,94865.0,94861.0,0.052684]
[1732788254641,0.3608,94865.0,94862.0,0.159]
[1732788255147,0.3608,94865.0,94863.0,0.159]
[1732788255944,0.3608,94865.0,94854.0,0.3608]
[1732788256133,0.3608,94865.0,94855.0,0.159]
[1732788256942,0.3628,94865.0,94855.0,0.159]
[1732788257143,0.3628,94865.0,94862.0,0.052684]
[1732788257642,0.3628,94865.0,94860.0,0.15904]
[1732788257643,0.3608,94865.0,94860.0,0.15904]
[1732788257938,0.052683,94864.0,94856.0,0.052687]
[1732788258147,0.3618,94865.0,94854.0,0.3608]
[1732788258338,0.052691,94850.0,94842.0,0.0015815]
[1732788258544,0.12444154,94850.0,94842.0,0.0015815]
[1732788258731,0.052692,94848.0,94842.0,0.0015815]
[1732788259041,0.3608,94843.0,94842.0,0.0015815]
[1732788259434,0.51630188,94843.0,94842.0,0.0015815]
[1732788259631,0.3608,94843.0,94842.0,0.0015815]
[1732788259841,0.15555673,94849.0,94843.0,0.052694]
[1732788260131,0.15555673,94850.0,94844.0,0.17288]
[1732788260332,0.052691,94849.0,94844.0,0.17288]
[1732788260538,0.052691,94849.0,94843.0,0.17288]
[1732788260734,0.052691,94849.0,94844.0,0.17288]
[1732788260944,0.20824773,94849.0,94844.0,0.17288]
[1732788261134,0.15555673,94847.0,94844.0,0.17288]
[1732788261541,0.15555673,94848.0,94844.0,0.17288]
[1732788261743,0.003,94849.0,94844.0,0.17288]
[1732788261939,0.15555673,94848.0,94844.0,0.17288]
[1732788262135,0.15555673,94847.0,94844.0,0.17288]
[1732788262446,0.15555673,94847.0,94844.0,0.00825273]
[1732788262750,0.15555673,94848.0,94844.0,0.00825273]
[1732788262943,0.15855673,94849.0,94844.0,0.00825273]
[1732788263346,0.15855673,94849.0,94843.0,0.052694]
[1732788263539,0.15755673,94849.0,94843.0,0.052694]
[1732788263846,0.413493,94845.0,94844.0,0.17288]
[1732788264047,0.56904973,94845.0,94844.0,0.17288]
[1732788264233,0.002,94849.0,94844.0,0.17288]
[1732788264234,0.15555673,94846.0,94844.0,0.17288]
[1732788264539,0.15655673,94849.0,94844.0,0.01297631]
[1732788264746,0.15555673,94846.0,94844.0,0.01297631]
[1732788264945,0.15555673,94846.0,94838.0,0.052697]
[1732788265149,0.12455518,94839.0,94838.0,0.052697]
[1732788265350,0.05125414,94848.0,94838.0,0.17288]
[1732788265351,0.20825273,94842.0,94838.0,0.17288]
[1732788265533,0.20825273,94842.0,94831.0,0.80376]
[1732788265534,0.15555673,94842.0,94831.0,0.80376]
[1732788265734,0.1245494,94834.0,94832.0,0.17288]
[1732788266155,0.1245494,94834.0,94831.0,0.80376]
[1732788266444,0.002,94845.0,94831.0,0.80376]
[1732788266753,0.052703,94829.0,94821.0,0.53368]
[1732788267046,0.052703,94829.0,94821.0,0.17288]
[1732788267246,0.052703,94829.0,94819.0,0.17288]
[1732788267449,0.3608,94828.0,94811.0,0.0317]
[1732788267649,0.3608,94828.0,94816.0,0.17288]
[1732788267836,0.052704,94827.0,94810.0,0.00158207]
[1732788268146,0.052711,94814.0,94810.0,0.00158207]
[1732788268345,0.3608,94817.0,94810.0,0.00158207]
[1732788268346,0.3608,94817.0,94811.0,0.052712]
[1732788268742,0.3608,94817.0,94810.0,0.00158207]
[1732788268940,0.052704,94827.0,94810.0,0.00158207]
[1732788269147,0.052704,94826.0,94817.0,0.052709]
[1732788270445,0.052705,94825.0,94817.0,0.052709]
[1732788271243,0.052705,94825.0,94817.0,0.053709]
[1732788271444,0.052705,94825.0,94817.0,0.054709]
[1732788271839,0.052707,94820.0,94817.0,0.002]
[1732788272045,0.052708,94819.0,94817.0,0.002]
[1732788272342,0.413508,94819.0,94817.0,0.002]
[1732788273049,0.413508,94819.0,94817.0,0.001]
[1732788273251,0.413508,94819.0,94817.0,0.002]
[1732788273756,0.413508,94819.0,94817.0,0.001]
[1732788274844,0.052711,94814.0,94811.0,0.032]
[1732788275042,0.3608,94819.0,94812.0,0.17292]
[1732788275248,0.3608,94819.0,94812.0,0.225631]
[1732788275453,0.052707,94820.0,94812.0,0.17292]
[1732788275957,0.052708,94819.0,94814.0,0.05271]
[1732788276155,0.052709,94818.0,94812.0,0.17292]
[1732788276358,0.052709,94817.0,94812.0,0.17492]
[1732788277054,0.052709,94817.0,94812.0,0.227632]
[1732788277248,0.052709,94817.0,94814.0,0.001]
[1732788277560,0.02109485,94823.0,94814.0,0.05371]
[1732788278055,0.052708,94819.0,94814.0,0.05371]
[1732788278656,0.02109485,94823.0,94814.0,0.001]
[1732788278657,0.052709,94817.0,94814.0,0.001]
[1732788279052,0.02109485,94823.0,94815.0,0.17292]
[1732788279243,0.052709,94817.0,94815.0,0.17292]
[1732788280256,0.052709,94817.0,94812.0,0.052712]
[1732788280257,0.02109485,94823.0,94812.0,0.001]
[1732788280557,0.3608,94828.0,94827.0,0.052703]
[1732788280749,0.3608,94838.0,94834.0,0.052699]
[1732788281148,0.3608,94838.0,94830.0,0.052702]
[1732788281349,0.3608,94838.0,94831.0,0.17292]
[1732788281550,0.3608,94838.0,94831.0,0.225621]
[1732788281755,0.0527,94834.0,94831.0,0.225621]
[1732788282060,0.0527,94834.0,94832.0,0.17292]
[1732788282257,0.0527,94834.0,94827.0,0.3608]
[1732788282258,0.12427565,94834.0,94827.0,0.3608]
[1732788282565,0.17697565,94834.0,94830.0,0.052702]
[1732788282747,0.17697565,94834.0,94831.0,0.052701]
[1732788282952,0.12427565,94834.0,94830.0,0.17292]
[1732788283163,0.3608,94838.0,94818.0,0.44364]
[1732788283164,0.052708,94819.0,94818.0,0.17348]
[1732788283456,0.052708,94819.0,94818.0,0.17292]
[1732788284560,0.052708,94819.0,94818.0,0.001]
[1732788286264,0.20856782,94819.0,94818.0,0.001]
[1732788286457,0.052708,94819.0,94818.0,0.001]
[1732788286662,0.15585982,94820.0,94818.0,0.001]
[1732788286865,0.052708,94819.0,94818.0,0.001]
[1732788287065,0.20856782,94819.0,94818.0,0.001]
[1732788287268,0.052708,94819.0,94818.0,0.001]
[1732788287859,0.052708,94819.0,94817.0,0.17296]
[1732788287860,0.052708,94818.0,94817.0,0.17296]
[1732788288563,0.05271,94815.0,94811.0,0.032]
[1732788288769,0.12476502,94821.0,94818.0,0.001]
[1732788288968,0.052708,94819.0,94818.0,0.001]
[1732788290373,0.052712,94812.0,94811.0,0.19924]
[1732788290873,0.052712,94812.0,94811.0,0.032]
[1732788291070,0.052712,94812.0,94811.0,0.19924]
[1732788291474,0.052712,94812.0,94811.0,0.032]
[1732788291683,0.12476502,94817.0,94801.0,0.16724]
[1732788291976,0.052713,94809.0,94802.0,0.0329]
[1732788292170,0.02335078,94808.0,94802.0,0.0329]
[1732788292371,0.02335078,94807.0,94802.0,0.0329]
[1732788292578,0.02335078,94807.0,94801.0,0.16724]
[1732788292579,0.02335078,94807.0,94800.0,0.29826877]
[1732788292868,0.41505078,94807.0,94800.0,0.11]
[1732788293279,0.4150246,94807.0,94800.0,0.11]
[1732788293570,0.7314646,94807.0,94800.0,0.11]
[1732788293770,0.74348452,94807.0,94800.0,0.11]
[1732788293974,0.7314646,94807.0,94800.0,0.11]
[1732788294177,0.4150246,94807.0,94800.0,0.11]
[1732788294580,0.4180246,94807.0,94800.0,0.11]
[1732788294973,0.7344646,94807.0,94800.0,0.11]
[1732788295176,0.052718,94801.0,94800.0,0.11]
[1732788295376,0.0760426,94801.0,94800.0,0.11]
[1732788295971,0.052725,94788.0,94781.0,0.00056]
[1732788296177,0.0233246,94787.0,94780.0,0.18826877]
[1732788296381,0.0233246,94786.0,94781.0,0.18826877]
[1732788296578,0.008971,94786.0,94781.0,0.16724]
[1732788296774,0.13382826,94786.0,94775.0,0.30590077]
[1732788296981,0.14818186,94786.0,94778.0,0.16724]
[1732788297282,0.14818186,94786.0,94775.0,0.27300077]
[1732788297283,0.008971,94785.0,94776.0,0.20024]
[1732788297484,0.052731,94778.0,94776.0,0.20024]
[1732788297673,0.052731,94778.0,94774.0,0.3608]
[1732788297674,0.008971,94777.0,94774.0,0.3608]
[1732788297984,0.052732,94775.0,94774.0,0.3608]
[1732788298183,0.052732,94775.0,94763.0,0.052739]
[1732788298184,0.06132094,94775.0,94759.0,0.18826877]
[1732788298377,0.06132094,94775.0,94755.0,0.36144]
[1732788298378,0.12817315,94769.0,94755.0,0.36144]
[1732788298577,0.052743,94757.0,94755.0,0.3608]
[1732788298780,0.00858393,94756.0,94744.0,0.3608]
[1732788298977,0.052748,94748.0,94745.0,6.457e-05]
[1732788299286,0.052748,94746.0,94745.0,6.457e-05]
[1732788299583,0.16728,94753.0,94745.0,6.457e-05]
[1732788299979,0.12817315,94755.0,94745.0,6.457e-05]
[1732788300175,0.3608,94757.0,94745.0,6.457e-05]
[1732788300393,0.052745,94752.0,94745.0,6.457e-05]
[1732788300683,0.48531249,94757.0,94745.0,6.457e-05]
[1732788300684,0.052744,94755.0,94745.0,6.457e-05]
[1732788300881,0.001,94756.0,94748.0,0.052747]
[1732788301282,0.001,94756.0,94745.0,0.03026457]
[1732788301488,0.001,94752.0,94745.0,0.00106457]
[1732788301681,0.052748,94747.0,94745.0,0.00106457]
[1732788302183,0.052748,94747.0,94745.0,6.457e-05]
[1732788302589,0.052744,94754.0,94745.0,6.457e-05]
[1732788302979,0.001,94756.0,94746.0,0.3608]
[1732788303483,0.001,94756.0,94754.0,0.052744]
[1732788303785,0.12450645,94758.0,94755.0,0.084143]
[1732788303988,0.12450645,94758.0,94757.0,0.052742]
[1732788304980,0.12450645,94758.0,94755.0,0.3922]
[1732788305190,0.12450645,94758.0,94755.0,0.0314]
[1732788305191,0.052742,94757.0,94755.0,0.0314]
[1732788305393,0.052743,94755.0,94754.0,0.001]
[1732788305691,0.052748,94747.0,94746.0,0.009]
[1732788306693,0.052748,94747.0,94745.0,6.457e-05]
[1732788307082,0.052747,94750.0,94746.0,0.009]
[1732788307284,0.12398683,94764.0,94753.0,0.052744]
[1732788307485,0.36093147,94767.0,94753.0,0.3608]
[1732788307689,0.36093147,94767.0,94763.0,0.052739]
[1732788307892,0.36093147,94767.0,94764.0,0.0325]
[1732788308192,0.36093147,94767.0,94757.0,0.052742]
[1732788308193,0.052739,94764.0,94757.0,0.052742]
[1732788308486,0.052739,94763.0,94757.0,0.052742]
[1732788308695,0.00013147,94767.0,94761.0,0.3608]
[1732788308887,0.00013147,94767.0,94765.0,0.052738]
[1732788309082,0.3608,94787.0,94776.0,0.052732]
[1732788309486,0.052726,94786.0,94776.0,0.052732]
[1732788310190,0.001,94777.0,94776.0,0.31652]
[1732788310493,0.00013496,94793.0,94792.0,0.052723]
[1732788310794,0.052713,94811.0,94798.0,0.052719]
[1732788310991,0.3608,94808.0,94792.0,0.36136]
[1732788311184,0.3608,94798.0,94784.0,0.16732]
[1732788311584,0.3608,94798.0,94780.0,0.44392]
[1732788311585,0.3608,94798.0,94786.0,0.052726]
[1732788311895,0.3608,94798.0,94780.0,0.44336]
[1732788311896,0.3608,94798.0,94789.0,0.052724]
[1732788312097,0.41352,94798.0,94792.0,0.001]
[1732788312288,0.48478683,94798.0,94792.0,5.241e-05]
[1732788312486,0.12398683,94802.0,94796.0,0.052721]
[1732788312694,0.12398683,94802.0,94792.0,5.241e-05]
[1732788312887,0.02123456,94806.0,94798.0,0.052719]
[1732788313085,0.33767456,94806.0,94792.0,0.00105241]
[1732788313397,0.3608,94793.0,94754.0,0.3608]
[1732788313695,0.3608,94793.0,94742.0,0.3608]
[1732788313696,0.3608,94764.0,94758.0,0.052741]
[1732788314196,0.3608,94764.0,94759.0,0.16740892]
[1732788314593,0.05274,94762.0,94759.0,8.892e-05]
[1732788314787,0.05274,94761.0,94759.0,8.892e-05]
[1732788317091,0.002,94761.0,94759.0,8.892e-05]
[1732788317291,0.002,94761.0,94760.0,0.052741]
[1732788318001,0.3608,94764.0,94759.0,8.892e-05]
[1732788318188,0.3608,94764.0,94763.0,0.052739]
[1732788318589,0.3608,94764.0,94759.0,8.892e-05]
[1732788318792,0.15515913,94762.0,94759.0,8.892e-05]
[1732788319093,0.15535906,94760.0,94759.0,8.892e-05]
[1732788319294,0.414379,94764.0,94759.0,0.16816892]
[1732788319492,0.05129726,94763.0,94759.0,0.16816892]
[1732788319695,0.05129726,94763.0,94759.0,8.892e-05]
[1732788319904,0.05129726,94763.0,94760.0,0.16808]
[1732788320405,0.0512966,94762.0,94760.0,0.16808]
[1732788320595,0.0512966,94761.0,94760.0,0.16808]
[1732788320797,0.0512966,94763.0,94759.0,8.892e-05]
[1732788320994,0.0512966,94762.0,94760.0,0.220821]
[1732788321703,0.001,94761.0,94760.0,0.16808]
[1732788322004,0.0522966,94761.0,94759.0,8.892e-05]
[1732788322205,0.0512966,94760.0,94759.0,8.892e-05]
[1732788322406,0.1040376,94760.0,94759.0,8.892e-05]
[1732788323298,0.0512966,94760.0,94759.0,8.892e-05]
[1732788323497,0.001,94762.0,94759.0,8.892e-05]
[1732788323702,0.001,94762.0,94759.0,0.16816892]
[1732788323703,0.0512966,94761.0,94759.0,0.16816892]
[1732788324103,0.0512966,94761.0,94759.0,0.22090992]
[1732788324403,0.0512966,94760.0,94759.0,0.22090992]
[1732788324607,0.0512966,94763.0,94759.0,0.16816892]
[1732788324905,0.0512966,94763.0,94762.0,0.05274]
[1732788325099,0.0512966,94763.0,94762.0,0.22082]
[1732788325907,0.48546658,94764.0,94759.0,8.892e-05]
[1732788326105,0.12466658,94761.0,94760.0,0.16808]
[1732788326303,0.05274,94762.0,94760.0,0.1790559]
[1732788326505,0.05274,94762.0,94761.0,0.0109759]
[1732788326707,0.36160001,94764.0,94761.0,0.0109759]
[1732788326708,0.3608,94764.0,94761.0,0.0109759]
[1732788326901,0.3608,94764.0,94762.0,0.0109759]
[1732788327102,0.3608,94764.0,94763.0,0.0109759]
[1732788327411,0.413538,94764.0,94763.0,0.0109759]
[1732788328311,0.3608,94764.0,94763.0,0.0109759]
[1732788328515,0.3618,94764.0,94763.0,0.0109759]
[1732788329019,0.052741,94760.0,94759.0,8.892e-05]
[1732788329407,0.052741,94760.0,94759.0,0.01120444]
[1732788330004,0.052741,94760.0,94759.0,8.892e-05]
[1732788330212,0.052741,94760.0,94759.0,0.01117395]
[1732788331907,0.15583322,94762.0,94759.0,0.01117395]
[1732788332302,0.15583322,94761.0,94759.0,0.01117395]
[1732788332501,0.15583322,94761.0,94759.0,0.05282992]
[1732788332806,0.15583322,94760.0,94759.0,0.05282992]
[1732788333006,0.052739,94763.0,94761.0,0.05274]
[1732788333007,0.15583322,94763.0,94761.0,0.05274]
[1732788333207,0.51663322,94764.0,94759.0,8.892e-05]
[1732788333414,0.05274,94761.0,94759.0,8.892e-05]
[1732788333910,0.05129799,94760.0,94759.0,8.892e-05]
[1732788334912,0.05129799,94760.0,94759.0,5.05e-06]
[1732788336107,0.05129799,94762.0,94759.0,5.05e-06]
[1732788336307,0.05129812,94761.0,94759.0,5.05e-06]
[1732788336510,0.05129812,94760.0,94759.0,0.05274605]
[1732788336813,0.05129434,94760.0,94759.0,5.05e-06]
[1732788337009,0.18726024,94760.0,94759.0,0.05274605]
[1732788337311,0.05129434,94760.0,94759.0,0.05274605]
[1732788337510,0.05129434,94770.0,94765.0,0.052738]
[1732788337712,0.05129434,94769.0,94760.0,0.052741]
[1732788337911,0.05129434,94769.0,94759.0,5.05e-06]
[1732788337912,0.24075815,94771.0,94767.0,0.052737]
[1732788338211,0.2709459,94770.0,94768.0,0.052736]
[1732788338417,0.05129434,94769.0,94768.0,0.052736]
[1732788338612,0.2709459,94770.0,94768.0,0.052736]
[1732788338812,0.05129434,94769.0,94768.0,0.052736]
[1732788339015,0.05129434,94770.0,94768.0,0.052736]
[1732788339213,0.05129434,94770.0,94759.0,5.05e-06]
[1732788339214,0.05129434,94770.0,94769.0,0.052736]
[1732788339414,0.05129434,94770.0,94759.0,5.05e-06]
[1732788339620,0.3608,94766.0,94756.0,0.01808505]
[1732788339915,0.052739,94763.0,94757.0,0.01112287]
[1732788340112,0.05129732,94762.0,94760.0,0.052741]
[1732788340619,0.05129732,94762.0,94761.0,0.16820375]
[1732788340815,0.10403732,94762.0,94761.0,0.16820375]
[1732788341722,0.10403732,94762.0,94761.0,0.01107152]
[1732788341918,0.05129732,94762.0,94761.0,0.23189152]
[1732788342119,0.05129614,94762.0,94761.0,0.17915152]
[1732788342516,0.05129668,94765.0,94761.0,0.17915152]
[1732788342818,0.54890696,94766.0,94765.0,0.052738]
[1732788343013,0.41289608,94766.0,94765.0,0.06368577]
[1732788343212,0.41209607,94766.0,94765.0,0.06368577]
[1732788344212,0.05129607,94766.0,94765.0,0.06368577]
[1732788344415,0.03767081,94771.0,94770.0,0.052735]
[1732788344720,0.15640813,94776.0,94770.0,0.44217606]
[1732788344940,0.15640813,94779.0,94773.0,0.18826877]
[1732788345123,0.36318338,94793.0,94779.0,0.05273]
[1732788345124,0.15640813,94780.0,94779.0,0.05273]
[1732788345424,0.36238337,94793.0,94781.0,0.052729]
[1732788345425,0.1250367,94782.0,94781.0,0.052729]
[1732788345612,0.15640813,94790.0,94782.0,0.052728]
[1732788345819,0.15640813,94790.0,94783.0,0.02864106]
[1732788346015,0.15640813,94790.0,94784.0,0.19048106]
[1732788346322,0.3608,94793.0,94784.0,0.19048106]
[1732788346323,0.3608,94793.0,94785.0,0.01094777]
[1732788346522,0.3608,94793.0,94784.0,0.16184]
[1732788346523,0.3608,94793.0,94792.0,0.052723]
[1732788346727,0.51720813,94793.0,94792.0,0.06367077]
[1732788347024,0.3608,94793.0,94792.0,0.052723]
[1732788347819,0.3608,94793.0,94792.0,0.053723]
[1732788348525,0.3608,94793.0,94792.0,0.370203]
[1732788348719,0.3608,94793.0,94792.0,0.38128355]
[1732788348720,0.3678,94793.0,94792.0,0.38128355]
[1732788349023,0.007,94793.0,94792.0,0.370203]
[1732788349223,0.007,94793.0,94792.0,0.38130497]
[1732788349725,0.12476693,94797.0,94796.0,0.052721]
[1732788349932,0.12476693,94797.0,94796.0,0.214521]
[1732788350316,0.12476693,94798.0,94797.0,0.05272]
[1732788350524,0.3608,94805.0,94797.0,0.1618]
[1732788350716,0.3608,94805.0,94786.0,0.3608]
[1732788350926,0.052726,94786.0,94785.0,0.00056]
[1732788351128,0.3608,94788.0,94753.0,0.44656012]
[1732788351129,0.3608,94788.0,94774.0,0.052733]
[1732788351323,0.3608,94788.0,94775.0,0.052732]
[1732788351324,0.3608,94776.0,94775.0,0.052732]
[1732788352220,0.12460592,94776.0,94775.0,0.531052]
[1732788352417,0.09345989,94779.0,94775.0,0.47832]
[1732788352625,0.15608751,94795.0,94775.0,0.214532]
[1732788352626,0.001,94776.0,94775.0,0.214532]
[1732788352829,0.001,94776.0,94775.0,0.22550968]
[1732788353026,0.001,94776.0,94775.0,0.54202968]
[1732788353229,0.001,94776.0,94775.0,0.531052]
[1732788353527,0.001,94776.0,94775.0,0.06364362]
[1732788353730,0.17733592,94779.0,94775.0,0.1678]
[1732788353917,0.12460592,94779.0,94775.0,0.1678]
[1732788354123,0.51688751,94786.0,94777.0,0.052731]
[1732788354124,0.12460592,94778.0,94777.0,0.052731]
[1732788354427,0.48540592,94778.0,94777.0,0.052731]
[1732788355026,0.1245264,94778.0,94777.0,0.214531]
[1732788355328,0.09339042,94778.0,94777.0,0.38037658]
[1732788355630,0.09339042,94779.0,94778.0,0.052731]
[1732788355826,0.09339042,94779.0,94778.0,0.09535658]
[1732788356028,0.09338006,94783.0,94778.0,0.44507658]
[1732788356224,0.052717,94804.0,94781.0,0.3608]
[1732788356225,0.09338006,94785.0,94781.0,0.3608]
[1732788356418,0.09338006,94785.0,94784.0,0.052727]
[1732788356619,0.1245264,94791.0,94784.0,0.06385258]
[1732788356822,0.1245264,94791.0,94790.0,0.052724]
[1732788357127,0.3608,94798.0,94791.0,0.052723]
[1732788357328,0.052722,94794.0,94791.0,0.052723]
[1732788358034,0.51768752,94798.0,94784.0,0.1618]